fUSD/lending_fUSD_20251105
["ID","MTS","AMOUNT","RATE_DAILY","PERIOD"]
[393237431,1762367446366,-159.20023584,0.00017973,2]
[393237432,1762367446376,-500.0,0.00017973,2]
[393237433,1762367446387,-500.0,0.00017973,2]
[393237434,1762367446396,-500.0,0.00017973,2]
[393237435,1762367446406,-500.0,0.00017973,2]
[393237436,1762367446415,-500.0,0.00017973,2]
[393237437,1762367446425,-500.0,0.00017973,2]
[393237438,1762367446434,-5888.0,0.00017974,2]
[393237439,1762367446444,-225.48,0.00017975,2]
[393237440,1762367446454,-602.12714801,0.0001799,2]
[393237441,1762367446464,-602.12714801,0.0001799,2]
[393237442,1762367446473,-500.0,0.00017998,2]
[393237443,1762367446483,-500.0,0.00017999,2]
[393237444,1762367446492,-500.0,0.00017999,2]
[393237445,1762367446502,-500.0,0.00017999,2]
[393237446,1762367446511,-500.0,0.00017999,2]
[393237447,1762367446522,-500.0,0.00017999,2]
[393237448,1762367446532,-529.90780693,0.00017999,2]
[393237449,1762367446541,-500.0,0.00017999,2]
[393237450,1762367446551,-500.0,0.00017999,2]
[393237451,1762367446560,-500.0,0.00017999,2]
[393237452,1762367446570,-500.0,0.00017999,2]
[393237453,1762367446581,-500.0,0.00017999,2]
[393237454,1762367446590,-500.0,0.00017999,2]
[393237455,1762367446599,-500.0,0.00017999,2]
[393237456,1762367446609,-500.0,0.00017999,2]
[393237457,1762367446618,-500.0,0.00017999,2]
[393237458,1762367446628,-500.0,0.00017999,2]
[393237459,1762367446638,-500.0,0.00017999,2]
[393237460,1762367446647,-500.0,0.00017999,2]
[393237461,1762367446657,-514.39450058,0.00017999,2]
[393237462,1762367446667,-342.52502965,0.00017999,2]
[393237463,1762367446676,-500.0,0.00017999,2]
[393237464,1762367446686,-500.0,0.00017999,2]
[393237465,1762367446695,-170.35975845,0.00017999,2]
[393237466,1762367446705,-500.0,0.00017999,2]
[393237467,1762367446714,-500.0,0.00017999,2]
[393237468,1762367446723,-435.66735613,0.00017999,2]
[393237469,1762367446732,-500.0,0.00017999,2]
[393237470,1762367446741,-500.0,0.00017999,2]
[393237471,1762367446750,-500.0,0.00017999,2]
[393237472,1762367446760,-500.0,0.00017999,2]
[393237473,1762367446769,-379.02356425,0.00017999,2]
[393237474,1762367446779,-300.0,0.00017999,2]
[393237475,1762367446788,-300.0,0.00017999,2]
[393237476,1762367446797,-300.0,0.00017999,2]
[393237477,1762367446807,-666.0,0.00017999,2]
[393237478,1762367446817,-300.0,0.00017999,2]
[393237479,1762367446827,-666.0,0.00017999,2]
[393237480,1762367446837,-1161293.84655918,0.00018,2]
[393237481,1762367447386,-2233.17136208,0.00018,2]
[393237482,1762367447397,-24312.95449009,0.00018,2]
[393237483,1762367447408,-614.57,0.00018,2]
[393237484,1762367447419,-981.56723786,0.00018,2]
[393237485,1762367447430,-3785.02319026,0.00018,2]
[393237486,1762367447440,-17189.29641831,0.00018,2]
[393237487,1762367447451,-2142.0,0.00018,2]
[393237488,1762367447462,-2532.2076907,0.00018,2]
[393237489,1762367447473,-5646.85628495,0.00018,2]
[393237490,1762367447550,6401.03033106,0.00014985,2]
[393237491,1762367447578,-500.0,0.00016356,2]
[393237492,1762367447590,-151.0,0.000164,2]
[393237493,1762367447600,-561.15028636,0.00017233,2]
[393237494,1762367447608,-9596.59971364,0.00018,2]
[393237495,1762367447619,-1264.82357846,0.00018,2]
[393237496,1762367447630,-2210.079186,0.00018,2]
[393237497,1762367447641,-1038.03694339,0.00018,2]
[393237498,1762367447728,-698.44,0.000159,2]
[393237499,1762367447738,-1315.0,0.00017209,2]
[393237500,1762367447748,-2986.56,0.00018,2]
[393237501,1762367447773,-500.0,0.00014998,2]
[393237502,1762367447782,-699972.78135,0.00018,2]
[393237503,1762367447843,-500.0,0.00014998,2]
[393237504,1762367447853,-500.0,0.00014998,2]
[393237505,1762367447862,-500.0,0.00014998,2]
[393237506,1762367447872,-500.0,0.00014998,2]
[393237507,1762367447881,-72304.56740284,0.00018,2]
[393237508,1762367447892,-9052.08353063,0.00018,2]
[393237509,1762367447979,-500.0,0.00014998,2]
[393237510,1762367447989,-370.20119571,0.00014998,2]
[393237511,1762367448001,-129.79880429,0.00014998,2]
[393237512,1762367448010,-500.0,0.00014998,2]
[393237513,1762367448019,-500.0,0.00014998,2]
[393237514,1762367448028,-500.0,0.00014998,2]
[393237515,1762367448037,-1261.81985478,0.00018,2]
[393237516,1762367448094,-271.48907211,0.00015309,2]
[393237517,1762367450165,-290.86586111,0.00015309,2]
[393237518,1762367453005,-245.18781316,0.00015309,2]
[393237519,1762367456115,-245.39737671,0.00014998,2]
[393237520,1762367458300,-164.06700875,0.00014998,2]
[393237521,1762367458323,-185.66605824,0.00014998,2]
[393237522,1762367461563,-250.0,0.00014998,2]
[393237523,1762367463614,-526.281467,0.00014923,2]
[393237524,1762367464288,-64.33394176,0.00014998,2]
[393237525,1762367464311,-370.81746368,0.00014998,2]
[393237526,1762367466466,-129.18253632,0.00014998,2]
[393237527,1762367466492,-92.89759855,0.00015153,2]
[393237528,1762367468372,-157.10240145,0.00015153,2]
[393237529,1762367468395,-81.33905344,0.00015309,2]
[393237530,1762367469495,-151.60212439,0.00014999,2]
[393237531,1762367471748,-348.39787561,0.00014999,2]
[393237532,1762367471772,-182.92101406,0.00014999,2]
[393237533,1762367473804,-317.07898594,0.00014999,2]
[393237534,1762367473827,-182.92101406,0.00015309,2]
[393237537,1762367492524,-500.0,0.00014999,2]
[393237538,1762367495315,-253.92642396,0.00014999,2]
[393237539,1762367497480,-246.07357604,0.00014999,2]
[393237540,1762367497504,-7.59754,0.00014999,2]
[393237541,1762367500869,-262.21088851,0.00014999,2]
[393237544,1762367503812,-155.83783876,0.00014999,2]
[393237545,1762367503834,-270.04138186,0.00015309,2]
[393237546,1762367508200,-509.17690153,0.00015309,2]
[393237549,1762367511988,-173.36051182,0.00015309,2]
[393237550,1762367514148,-180.86365927,0.00015309,2]
[393237551,1762367517208,-322.97637123,0.00015309,2]
[393237552,1762367518761,-215.12877233,0.00015309,2]
[393237553,1762367520536,-178.8903808,0.00015309,2]
[393237556,1762367536558,-280.20155479,0.00015309,2]
[393237557,1762367538141,-165.60028277,0.00015309,2]
[393237558,1762367540817,-183.38462195,0.00015309,2]
[393237560,1762367544370,-414.96521464,0.00015309,2]
[393237561,1762367546705,-160.19533334,0.00015309,2]
[393237562,1762367548907,-246.59656865,0.00015309,2]
[393237563,1762367550511,-242.20867925,0.00015309,2]
[393237566,1762367566584,-211.88014745,0.00014999,2]
[393237567,1762367568855,-209.28168496,0.00014999,2]
[393237568,1762367571816,-78.83816759,0.00014999,2]
[393237569,1762367571842,-274.40624356,0.00014999,2]
[393237570,1762367573430,-225.59375644,0.00014999,2]
[393237571,1762367573458,-84.80248156,0.00014999,2]
[393237573,1762367577238,-415.19751844,0.00014999,2]
[393237574,1762367577268,-129.89529826,0.00015309,2]
[393237575,1762367580083,-287.35163607,0.00015309,2]
[393237576,1762367585823,-382.91066903,0.00015309,2]
[393237578,1762367588175,-156.31587506,0.00014999,2]
[393237579,1762367592791,-260.17323989,0.00014999,2]
[393237580,1762367596375,-83.51088505,0.00014999,2]
[393237581,1762367596396,-211.41537146,0.00014999,2]
[393237583,1762367600055,-153.73396483,0.00014999,2]
[393237584,1762367602329,-134.85066371,0.00014999,2]
[393237585,1762367602353,-359.66408919,0.00015309,2]
[393237586,1762367605282,-260.09035706,0.00015309,2]
[393237588,1762367607943,-365.72523334,0.00015309,2]
[393237589,1762367607968,-59.64227021,0.00015406,2]
[393237590,1762367609973,-171.95036097,0.00014999,2]
[393237591,1762367611503,-170.98378509,0.00014999,2]
[393237592,1762367613156,-157.06585394,0.00014999,2]
[393237593,1762367613178,-47.76656264,0.00014999,2]
[393237594,1762367616550,-167.57980382,0.00014999,2]
[393237595,1762367618700,-239.90964294,0.00014999,2]
[393237596,1762367621070,-44.7439906,0.00014999,2]
[393237597,1762367621095,-105.41395753,0.00015406,2]
[393237598,1762367621117,-78.1935809,0.00015506,2]
[393237599,1762367624416,-171.8064191,0.00015506,2]
[393237600,1762367624440,-15.4473809,0.00015633,2]
[393237601,1762367625984,-187.2538,0.00015633,2]
[393237602,1762367641668,-195.0,0.00015633,2]
[393237603,1762367644690,-318.59217476,0.00015633,2]
[393237604,1762367646826,-207.43160238,0.00015633,2]
[393237605,1762367649596,-208.32539986,0.00015633,2]
[393237608,1762367652752,-180.43313349,0.00015633,2]
[393237609,1762367654841,-464.39129279,0.00015633,2]
[393237610,1762367671676,-281.68893878,0.00015633,2]
[393237611,1762367673168,-203.33677104,0.00015633,2]
[393237612,1762367674904,-186.74251173,0.00015633,2]
[393237613,1762367676433,-515.70348041,0.00015633,2]
[393237614,1762367677958,-360.28752108,0.00015633,2]
[393237615,1762367679732,-387.36845372,0.00015633,2]
[393237616,1762367684641,-157.05196529,0.00015633,2]
[393237617,1762367695694,500.0,0.00014999,2]
[393237618,1762367695970,500.0,0.00014999,2]
[393237619,1762367696437,-251.68855497,0.00015633,2]
[393237620,1762367698594,-432.65788821,0.00015633,2]
[393237621,1762367701426,-388.17968747,0.00015633,2]
[393237622,1762367703401,-214.6380603,0.00015633,2]
[393237623,1762367705031,-193.68201102,0.00015633,2]
[393237624,1762367707254,-248.31144503,0.00015633,2]
[393237625,1762367708834,-236.48769242,0.00015633,2]
[393237626,1762367711078,-164.4523553,0.00015633,2]
[393237627,1762367713613,-158.87637621,0.00015633,2]
[393237628,1762367715873,-229.34279301,0.00015633,2]
[393237642,1762367866092,500.0,0.00014999,2]
[393237643,1762367866426,500.0,0.00014999,2]
[393237653,1762367945533,500.0,0.00014999,2]
[393237680,1762368033133,500.0,0.00014999,2]
[393237681,1762368033433,342.52502965,0.00014999,2]
[393237701,1762368061170,500.0,0.00014999,2]
[393237703,1762368062024,500.0,0.00014999,2]
[393237715,1762368076539,-154.99474791,0.00015314,2]
[393237746,1762368168166,500.0,0.00014999,2]
[393237747,1762368168428,500.0,0.00014999,2]
[393237748,1762368181758,500.0,0.00014999,2]
[393237749,1762368182027,500.0,0.00014999,2]
[393237750,1762368295580,162.18,7.914e-05,2]
[393237751,1762368295791,162.18,9.815e-05,2]
[393237752,1762368295992,162.18,0.00011716,2]
[393237753,1762368296426,162.18,0.00013617,2]
[393237755,1762368298550,-11.66525209,0.00015314,2]
[393237756,1762368298579,-162.18,0.00015518,2]
[393237757,1762368298609,-149.39879121,0.00015636,2]
[393237799,1762368631763,-17.26120879,0.00015636,2]
[393237800,1762368631773,-366.21655459,0.00015856,2]
[393237801,1762368631806,-133.78344541,0.00015856,2]
[393237802,1762368631816,-165.05622774,0.00015858,2]
[393237803,1762368631826,-211.19972172,0.00015951,2]
[393237804,1762368631835,-160.0,0.00015955,2]
[393237805,1762368631845,-180.0,0.00015958,2]
[393237806,1762368631856,-300.0,0.00015958,2]
[393237807,1762368631866,-300.0,0.00015958,2]
[393237808,1762368631878,-1200.0,0.00015958,2]
[393237809,1762368631888,-166.66,0.00015958,2]
[393237810,1762368631898,-1200.0,0.00015959,2]
[393237811,1762368631907,-176.0,0.00015959,2]
[393237812,1762368631917,-500.0,0.0001596,2]
[393237813,1762368631927,-500.0,0.0001596,2]
[393237814,1762368631937,-500.0,0.0001596,2]
[393237815,1762368631947,-500.0,0.0001596,2]
[393237816,1762368631956,-450.39588319,0.0001596,2]
[393237817,1762368631965,-500.0,0.0001596,2]
[393237818,1762368631974,-404.70794009,0.0001596,2]
[393237819,1762368631984,-500.0,0.0001596,2]
[393237820,1762368631993,-500.0,0.0001596,2]
[393237821,1762368632004,-287.16419095,0.0001596,2]
[393237822,1762368632013,-500.0,0.0001596,2]
[393237823,1762368632023,-501.80987998,0.0001596,2]
[393237824,1762368632034,-12073.92808998,0.00015961,2]
[393237825,1762368632043,-888.07,0.00015961,2]
[393237826,1762368632052,-150.99,0.00015961,2]
[393237827,1762368632062,-908.11,0.00015961,2]
[393237828,1762368632072,-12001.43,0.00015961,2]
[393237829,1762368632081,-9441.52,0.00015961,2]
[393237830,1762368632090,-999.99,0.00015961,2]
[393237831,1762368632100,-800.0,0.00016082,2]
[393237832,1762368632111,-6594.94,0.00016082,2]
[393237833,1762368632120,-9198.75,0.00016114,2]
[393237834,1762368632130,-339.29,0.0001614,2]
[393237835,1762368632140,-500.0,0.00016199,2]
[393237836,1762368632149,-500.0,0.00016199,2]
[393237837,1762368632159,-500.0,0.00016199,2]
[393237838,1762368632168,-641.3407631,0.00016199,2]
[393237839,1762368632179,-500.0,0.00016199,2]
[393237840,1762368632190,-500.0,0.00016199,2]
[393237841,1762368632199,-435.66735613,0.00016199,2]
[393237842,1762368632212,-500.0,0.00016199,2]
[393237843,1762368632222,-835.09,0.00016201,2]
[393237844,1762368632236,-4071.45,0.00016227,2]
[393237845,1762368632245,-2751.0,0.00016234,2]
[393237846,1762368632254,-500.0,0.0001625,2]
[393237847,1762368632263,-500.0,0.0001625,2]
[393237848,1762368632274,-500.0,0.0001625,2]
[393237849,1762368632283,-553.58,0.00016257,2]
[393237850,1762368632293,-151.0,0.00016257,2]
[393237851,1762368632303,-151.0,0.00016257,2]
[393237852,1762368632313,-151.0,0.00016257,2]
[393237853,1762368632323,-151.0,0.00016257,2]
[393237854,1762368632332,-151.0,0.00016257,2]
[393237855,1762368632341,-500.0,0.00016257,2]
[393237856,1762368632351,-151.0,0.00016257,2]
[393237857,1762368632360,-151.0,0.00016257,2]
[393237858,1762368632370,-151.0,0.00016257,2]
[393237859,1762368632380,-151.0,0.00016257,2]
[393237860,1762368632389,-151.0,0.00016257,2]
[393237861,1762368632398,-151.0,0.00016257,2]
[393237862,1762368632407,-151.0,0.00016257,2]
[393237864,1762368632416,-151.0,0.00016257,2]
[393237866,1762368632425,-151.0,0.00016257,2]
[393237868,1762368632434,-151.0,0.00016257,2]
[393237870,1762368632443,-151.0,0.00016257,2]
[393237872,1762368632452,-151.0,0.00016257,2]
[393237875,1762368632462,-151.0,0.00016257,2]
[393237877,1762368632475,-151.0,0.00016257,2]
[393237879,1762368632484,-151.0,0.00016257,2]
[393237880,1762368632493,-151.0,0.00016257,2]
[393237882,1762368632502,-151.0,0.00016257,2]
[393237884,1762368632512,-151.0,0.00016257,2]
[393237886,1762368632522,-151.0,0.00016257,2]
[393237888,1762368632531,-151.0,0.00016257,2]
[393237890,1762368632540,-151.0,0.00016257,2]
[393237892,1762368632549,-151.0,0.00016257,2]
[393237894,1762368632559,-151.0,0.00016257,2]
[393237896,1762368632568,-151.0,0.00016257,2]
[393237898,1762368632578,-151.0,0.00016257,2]
[393237900,1762368632587,-151.0,0.00016257,2]
[393237902,1762368632596,-151.0,0.00016257,2]
[393237904,1762368632607,-151.0,0.00016257,2]
[393237906,1762368632616,-151.0,0.00016257,2]
[393237909,1762368632628,-151.0,0.00016257,2]
[393237911,1762368632638,-151.0,0.00016257,2]
[393237913,1762368632647,-151.0,0.00016257,2]
[393237915,1762368632656,-151.0,0.00016257,2]
[393237917,1762368632666,-151.0,0.00016257,2]
[393237919,1762368632675,-322.6107,0.00016257,2]
[393237921,1762368632684,-151.0,0.00016257,2]
[393237923,1762368632698,-151.0,0.00016257,2]
[393237925,1762368632714,-151.0,0.00016257,2]
[393237927,1762368632723,-500.0,0.00016257,2]
[393237929,1762368632732,-151.0,0.00016257,2]
[393237931,1762368632742,-500.0,0.00016257,2]
[393237963,1762368633015,-151.0,0.00016257,2]
[393237965,1762368633029,-500.0,0.00016257,2]
[393237967,1762368633039,-151.0,0.00016257,2]
[393237968,1762368633048,-500.0,0.00016257,2]
[393237969,1762368633058,-151.0,0.00016257,2]
[393237970,1762368633068,-500.0,0.00016257,2]
[393237971,1762368633077,-151.0,0.00016257,2]
[393237972,1762368633087,-500.0,0.00016257,2]
[393237973,1762368633096,-250.0,0.00016257,2]
[393237974,1762368633106,-500.0,0.00016257,2]
[393237975,1762368633115,-370.89842566,0.00016257,2]
[393237976,1762368633125,-500.0,0.00016257,2]
[393237977,1762368633134,-500.0,0.00016257,2]
[393237978,1762368633146,-500.0,0.00016257,2]
[393237979,1762368633156,-200.0,0.00016257,2]
[393237980,1762368633165,-500.0,0.00016257,2]
[393237981,1762368633175,-3358.62,0.00016267,2]
[393237983,1762368633184,-166.66,0.00016281,2]
[393237984,1762368633193,-500.0,0.00016356,2]
[393237986,1762368633202,-900.0,0.00016356,2]
[393237987,1762368633211,-160.4752958,0.00016367,2]
[393237988,1762368633221,-501.49023745,0.00016417,2]
[393237989,1762368633233,-532.88987397,0.00016423,2]
[393237990,1762368633243,-532.88987397,0.00016423,2]
[393237991,1762368633252,-241.84507571,0.00016438,2]
[393237992,1762368633261,-553.58,0.00016531,2]
[393237993,1762368633272,-500.0,0.00016575,2]
[393237994,1762368633280,-166.66,0.00016603,2]
[393237995,1762368633290,-180.85,0.00016712,2]
[393237996,1762368633299,-166.66,0.00016716,2]
[393237997,1762368633310,-546.02,0.00016732,2]
[393237998,1762368633319,-500.0,0.00016798,2]
[393237999,1762368633328,-553.58,0.00016805,2]
[393238000,1762368633339,-229.34279301,0.00016881,2]
[393238001,1762368633349,-2500.0,0.00016886,2]
[393238002,1762368633360,-12010.88006504,0.00016891,2]
[393238003,1762368633369,-192.37256786,0.00016891,2]
[393238004,1762368633378,-5461.81059417,0.00016891,2]
[393238005,1762368633388,-292.97961443,0.00016899,2]
[393238006,1762368633397,-166.66,0.00016926,2]
[393238007,1762368633408,-1156.0,0.00016927,2]
[393238008,1762368633419,-500.0,0.00016973,2]
[393238009,1762368633428,-500.0,0.00016973,2]
[393238010,1762368633438,-500.0,0.00016973,2]
[393238011,1762368633447,-500.0,0.00016973,2]
[393238012,1762368633457,-605.78717603,0.00016973,2]
[393238013,1762368633467,-500.0,0.00016973,2]
[393238014,1762368633476,-500.0,0.00016973,2]
[393238015,1762368633485,-500.0,0.00016973,2]
[393238016,1762368633494,-500.0,0.00016973,2]
[393238017,1762368633503,-500.0,0.00016973,2]
[393238018,1762368633512,-404.77706377,0.00016973,2]
[393238019,1762368633521,-500.0,0.00016973,2]
[393238020,1762368633530,-500.0,0.00016973,2]
[393238021,1762368633538,-500.0,0.00016973,2]
[393238022,1762368633547,-500.0,0.00016973,2]
[393238023,1762368633556,-500.0,0.00016973,2]
[393238024,1762368633565,-500.0,0.00016973,2]
[393238025,1762368633576,-151.0,0.00016983,2]
[393238026,1762368633585,-256.51294189,0.00016985,2]
[393238027,1762368633594,-296.28678797,0.00016985,2]
[393238028,1762368633604,-500.0,0.00016985,2]
[393238029,1762368633613,-416.06543527,0.00016985,2]
[393238030,1762368633622,-529.90780693,0.00016986,2]
[393238031,1762368633632,-500.0,0.00016986,2]
[393238032,1762368633641,-500.0,0.00016986,2]
[393238033,1762368633651,-45017.79044963,0.00016986,2]
[393238034,1762368633664,-1214.93687648,0.00016986,2]
[393238035,1762368633675,-302.0,0.00016986,2]
[393238036,1762368633686,-218345.61267389,0.00016986,2]
[393238037,1762368633696,-5050.92794848,0.00016991,2]
[393238038,1762368633705,-500.0,0.00016999,2]
[393238039,1762368633715,-500.0,0.00016999,2]
[393238040,1762368633724,-500.0,0.00016999,2]
[393238041,1762368633741,-500.0,0.00016999,2]
[393238042,1762368633753,-500.0,0.00016999,2]
[393238043,1762368633763,-500.0,0.00016999,2]
[393238044,1762368633773,-250.0,0.00017,2]
[393238045,1762368633782,-500.0,0.00017001,5]
[393238046,1762368633793,-1156.0,0.00017003,2]
[393238047,1762368633803,-12010.88006497,0.00017003,2]
[393238048,1762368633813,-5461.81059412,0.00017003,2]
[393238049,1762368633823,-292.97961441,0.0001701,2]
[393238050,1762368633834,-500.0,0.00017014,2]
[393238051,1762368633844,-500.0,0.0001702,2]
[393238052,1762368633855,-2923.494,0.00017034,2]
[393238053,1762368633866,-154.537,0.00017034,2]
[393238054,1762368633875,-192.3725678,0.00017035,2]
[393238055,1762368633885,-1156.0,0.0001704,2]
[393238056,1762368633896,-553.58,0.00017079,2]
[393238057,1762368633906,-200.0,0.00017112,2]
[393238058,1762368633916,-500.0,0.00017113,2]
[393238059,1762368633926,-12010.88006497,0.00017115,2]
[393238060,1762368633942,-5461.81059412,0.00017115,2]
[393238061,1762368633951,-292.97961441,0.00017121,2]
[393238062,1762368633961,-1154.90118841,0.00017141,2]
[393238063,1762368633971,-1156.0,0.00017144,2]
[393238064,1762368633981,-500.0,0.00017157,2]
[393238065,1762368633990,-192.3725678,0.00017179,2]
[393238066,1762368634000,-250.0,0.000172,2]
[393238067,1762368634010,-250.0,0.000172,2]
[393238068,1762368634020,-250.0,0.000172,2]
[393238069,1762368634030,-300.0,0.000172,2]
[393238070,1762368634040,-300.0,0.000172,2]
[393238071,1762368634049,-300.0,0.000172,2]
[393238072,1762368634058,-447.24766201,0.000172,2]
[393238073,1762368634068,-195.0,0.000172,2]
[393238074,1762368634078,-401.68929586,0.000172,2]
[393238075,1762368634088,-1156.0,0.000172,2]
[393238076,1762368634097,-12010.88006497,0.00017227,2]
[393238077,1762368634107,-1800.90155972,0.00017227,2]
[393238078,1762368634124,-3660.9090344,0.00017227,2]
[393238079,1762368634134,-500.0,0.00017232,2]
[393238080,1762368634143,-292.97961441,0.00017233,2]
[393238081,1762368634153,-3292.12242518,0.00017252,2]
[393238082,1762368634163,-1156.0,0.0001726,2]
[393238083,1762368634173,-1156.0,0.00017264,2]
[393238084,1762368634183,-166.66,0.00017268,2]
[393238085,1762368634192,-1156.0,0.00017283,2]
[393238086,1762368634202,-500.0,0.00017294,2]
[393238087,1762368634211,-1156.0,0.00017297,2]
[393238088,1762368634222,-1156.0,0.00017316,2]
[393238089,1762368634235,-192.3725678,0.00017323,2]
[393238090,1762368634245,-12010.88006497,0.00017339,2]
[393238091,1762368634254,-5461.81059412,0.00017339,2]
[393238092,1762368634264,-292.97961441,0.00017344,2]
[393238093,1762368634276,-553.58,0.00017353,2]
[393238094,1762368634285,-561.15028636,0.000174,2]
[393238095,1762368634295,-500.0,0.00017431,2]
[393238096,1762368634305,-1156.0,0.00017431,2]
[393238097,1762368634315,-211.96596611,0.00017435,2]
[393238098,1762368634324,-166.0,0.00017448,2]
[393238099,1762368634334,-420.0,0.00017448,2]
[393238100,1762368634343,-12010.88006497,0.00017452,2]
[393238101,1762368634353,-2935.57509033,0.00017452,2]
[393238102,1762368634366,-2526.23550379,0.00017452,2]
[393238103,1762368634375,-800.0,0.00017452,2]
[393238104,1762368634387,-292.97961441,0.00017455,2]
[393238105,1762368634397,-192.3725678,0.00017468,2]
[393238106,1762368634412,-477.03,0.00017501,2]
[393238107,1762368634422,-477.03,0.00017501,2]
[393238108,1762368634431,-788.5,0.00017501,2]
[393238109,1762368634441,-477.03,0.00017501,2]
[393238110,1762368634451,-953.86,0.00017501,2]
[393238111,1762368634460,-607.0,0.00017509,2]
[393238112,1762368634470,-3422.0,0.00017509,2]
[393238113,1762368634479,-1315.0,0.00017509,2]
[393238114,1762368634488,-574.0,0.00017509,2]
[393238115,1762368634498,-820.0,0.00017509,2]
[393238116,1762368634508,-1595.0,0.00017509,2]
[393238117,1762368634522,-812.0,0.00017509,2]
[393238118,1762368634532,-1272.0,0.00017509,2]
[393238119,1762368634542,-6473.0,0.00017509,2]
[393238120,1762368634551,-6627.0,0.00017509,2]
[393238121,1762368634561,-559.0,0.00017509,2]
[393238122,1762368634571,-500.0,0.00017521,2]
[393238123,1762368634580,-1000.0,0.00017521,2]
[393238124,1762368634590,-1000.0,0.00017521,2]
[393238125,1762368634600,-1118.2018509,0.00017521,2]
[393238126,1762368634610,-1000.0,0.00017521,2]
[393238127,1762368634620,-226.71413784,0.00017528,2]
[393238128,1762368634629,-160.49083682,0.00017528,2]
[393238129,1762368634640,-500.0,0.00017528,2]
[393238130,1762368634650,-170.35975845,0.00017528,2]
[393238131,1762368634660,-379.02356425,0.00017528,2]
[393238132,1762368634670,-1680.0,0.00017536,2]
[393238133,1762368634680,-12010.88006497,0.00017564,2]
[393238134,1762368634690,-292.97961441,0.00017566,2]
[393238135,1762368634699,-561.15028636,0.00017567,2]
[393238136,1762368634709,-500.0,0.00017568,2]
[393238137,1762368634719,-1156.0,0.00017591,2]
[393238138,1762368634728,-192.3725678,0.00017612,2]
[393238139,1762368634738,-346.92554585,0.00017626,2]
[393238140,1762368634747,-455.11711172,0.00017666,2]
[393238141,1762368634757,-2500.0,0.00017671,3]
[393238142,1762368634767,-3046.97776854,0.00017676,2]
[393238143,1762368634780,-8963.90229643,0.00017676,2]
[393238144,1762368634790,-292.97961441,0.00017678,2]
[393238145,1762368634800,-2500.0,0.0001768,3]
[393238146,1762368634811,-2500.0,0.00017689,3]
[393238147,1762368634820,-2500.0,0.00017698,3]
[393238148,1762368634830,-500.0,0.00017699,2]
[393238149,1762368634840,-500.0,0.00017699,2]
[393238150,1762368634849,-500.0,0.00017699,2]
[393238151,1762368634859,-500.0,0.00017699,2]
[393238152,1762368634869,-500.0,0.00017699,2]
[393238153,1762368634879,-477.76462643,0.000177,3]
[393238154,1762368634889,-5000.0,0.000177,2]
[393238155,1762368634899,-169.85165307,0.000177,2]
[393238156,1762368634908,-500.0,0.00017705,2]
[393238157,1762368634918,-2500.0,0.00017706,3]
[393238158,1762368634928,-1156.0,0.00017708,2]
[393238159,1762368634938,-893.58488772,0.00017714,2]
[393238160,1762368634947,-2500.0,0.00017715,3]
[393238161,1762368634957,-500.0,0.00017721,2]
[393238162,1762368634967,-2500.0,0.00017724,3]
[393238163,1762368634978,-704.21852697,0.00017725,2]
[393238164,1762368634987,-900.0,0.00017726,2]
[393238165,1762368634997,-2500.0,0.00017733,3]
[393238166,1762368635007,-561.15028636,0.00017733,2]
[393238167,1762368635018,-2500.0,0.00017742,3]
[393238168,1762368635028,-2500.0,0.0001775,3]